fUSD/lending_fUSD_20240727
["ID","MTS","AMOUNT","RATE_DAILY","PERIOD"]
[333384208,1722087046658,-290.05,0.00010999,2]
[333384209,1722087046667,-500.0,0.00010999,2]
[333384210,1722087046676,-500.0,0.00010999,2]
[333384211,1722087046686,-500.0,0.00010999,2]
[333384212,1722087046695,-500.0,0.00010999,2]
[333384213,1722087046705,-500.0,0.00010999,2]
[333384214,1722087046714,-500.0,0.00010999,2]
[333384215,1722087046724,-637.34425752,0.00010999,2]
[333384216,1722087046734,-242.79,0.00010999,2]
[333384217,1722087046743,-425.08,0.00010999,2]
[333384218,1722087046752,-500.0,0.00010999,2]
[333384219,1722087046762,-500.0,0.00010999,2]
[333384220,1722087046772,-500.0,0.00010999,2]
[333384221,1722087046781,-500.0,0.00010999,2]
[333384222,1722087046791,-500.0,0.00010999,2]
[333384223,1722087046800,-500.0,0.00010999,2]
[333384224,1722087046809,-500.0,0.00010999,2]
[333384225,1722087046819,-177.7,0.00010999,2]
[333384226,1722087046828,-500.0,0.00010999,2]
[333384227,1722087046838,-500.0,0.00010999,2]
[333384228,1722087046847,-500.0,0.00010999,2]
[333384229,1722087046857,-500.0,0.00010999,2]
[333384230,1722087046866,-500.0,0.00010999,2]
[333384231,1722087046876,-500.0,0.00010999,2]
[333384232,1722087046886,-500.0,0.00010999,2]
[333384233,1722087046895,-500.0,0.00010999,2]
[333384234,1722087046904,-500.0,0.00010999,2]
[333384235,1722087046914,-153.89,0.00010999,2]
[333384236,1722087046924,-505.08787746,0.00010999,2]
[333384237,1722087046934,-500.0,0.00010999,2]
[333384238,1722087046943,-500.0,0.00010999,2]
[333384239,1722087046953,-500.0,0.00010999,2]
[333384240,1722087046962,-500.0,0.00010999,2]
[333384241,1722087046972,-500.0,0.00010999,2]
[333384242,1722087046981,-500.0,0.00010999,2]
[333384243,1722087046991,-500.0,0.00010999,2]
[333384244,1722087047000,-500.0,0.00010999,2]
[333384245,1722087047011,-500.0,0.00010999,2]
[333384246,1722087047020,-500.0,0.00010999,2]
[333384247,1722087047030,-500.0,0.00010999,2]
[333384248,1722087047039,-500.0,0.00010999,2]
[333384249,1722087047049,-500.0,0.00010999,2]
[333384250,1722087047058,-211.76826308,0.00010999,2]
[333384251,1722087047067,-500.0,0.00010999,2]
[333384252,1722087047077,-500.0,0.00010999,2]
[333384253,1722087047086,-500.0,0.00010999,2]
[333384254,1722087047096,-500.0,0.00010999,2]
[333384255,1722087047106,-500.0,0.00010999,2]
[333384256,1722087047115,-500.0,0.00010999,2]
[333384257,1722087047124,-500.0,0.00010999,2]
[333384258,1722087047134,-500.0,0.00010999,2]
[333384259,1722087047144,-500.0,0.00010999,2]
[333384260,1722087047154,-500.0,0.00010999,2]
[333384261,1722087047166,-500.0,0.00010999,2]
[333384262,1722087047175,-500.0,0.00010999,2]
[333384263,1722087047185,-500.0,0.00010999,2]
[333384264,1722087047194,-500.0,0.00010999,2]
[333384265,1722087047203,-500.0,0.00010999,2]
[333384266,1722087047215,-500.0,0.00010999,2]
[333384267,1722087047225,-500.0,0.00010999,2]
[333384268,1722087047234,-500.0,0.00010999,2]
[333384269,1722087047245,-500.0,0.00010999,2]
[333384270,1722087047255,-369.12151028,0.00010999,2]
[333384271,1722087047264,-500.0,0.00010999,2]
[333384272,1722087047273,-500.0,0.00010999,2]
[333384273,1722087047283,-500.0,0.00010999,2]
[333384274,1722087047292,-500.0,0.00010999,2]
[333384275,1722087047302,-500.0,0.00010999,2]
[333384276,1722087047311,-500.0,0.00010999,2]
[333384277,1722087047320,-500.0,0.00010999,2]
[333384278,1722087047330,-500.0,0.00010999,2]
[333384279,1722087047340,-500.0,0.00010999,2]
[333384280,1722087047350,-500.0,0.00010999,2]
[333384281,1722087047359,-500.0,0.00010999,2]
[333384282,1722087047368,-500.0,0.00010999,2]
[333384283,1722087047377,-500.0,0.00010999,2]
[333384284,1722087047386,-500.0,0.00010999,2]
[333384285,1722087047396,-416.51133833,0.00010999,2]
[333384286,1722087047405,-500.0,0.00010999,2]
[333384287,1722087047415,-500.0,0.00010999,2]
[333384288,1722087047424,-500.0,0.00010999,2]
[333384289,1722087047433,-500.0,0.00010999,2]
[333384290,1722087047442,-500.0,0.00010999,2]
[333384291,1722087047451,-500.0,0.00010999,2]
[333384292,1722087047461,-500.0,0.00010999,2]
[333384293,1722087047471,-500.0,0.00010999,2]
[333384294,1722087047480,-500.0,0.00010999,2]
[333384295,1722087047490,-500.0,0.00010999,2]
[333384296,1722087047499,-500.0,0.00010999,2]
[333384297,1722087047555,-500.0,0.00010999,2]
[333384298,1722087047565,-500.0,0.00010999,2]
[333384299,1722087047574,-500.0,0.00010999,2]
[333384300,1722087047583,-500.0,0.00010999,2]
[333384301,1722087047592,-500.0,0.00010999,2]
[333384302,1722087047602,-500.0,0.00010999,2]
[333384303,1722087047611,-500.0,0.00010999,2]
[333384304,1722087047620,-500.0,0.00010999,2]
[333384305,1722087047630,-500.0,0.00010999,2]
[333384306,1722087047639,-500.0,0.00010999,2]
[333384307,1722087047648,-278.74381073,0.00010999,2]
[333384308,1722087047657,-500.0,0.00010999,2]
[333384309,1722087047666,-500.0,0.00010999,2]
[333384310,1722087047675,-500.0,0.00010999,2]
[333384311,1722087047685,-500.0,0.00010999,2]
[333384312,1722087047694,-500.0,0.00010999,2]
[333384313,1722087047703,-500.0,0.00010999,2]
[333384314,1722087047712,-500.0,0.00010999,2]
[333384315,1722087047722,-500.0,0.00010999,2]
[333384316,1722087047731,-500.0,0.00010999,2]
[333384317,1722087047741,-500.0,0.00010999,2]
[333384318,1722087047750,-500.0,0.00010999,2]
[333384319,1722087047760,-434.52058454,0.00010999,2]
[333384320,1722087047769,-500.0,0.00010999,2]
[333384321,1722087047779,-500.0,0.00010999,2]
[333384322,1722087047788,-500.0,0.00010999,2]
[333384323,1722087047797,-500.0,0.00010999,2]
[333384324,1722087047807,-500.0,0.00010999,2]
[333384325,1722087047816,-500.0,0.00010999,2]
[333384326,1722087047826,-500.0,0.00010999,2]
[333384327,1722087047835,-500.0,0.00010999,2]
[333384328,1722087047845,-340.12856576,0.00010999,2]
[333384329,1722087047854,-500.0,0.00010999,2]
[333384330,1722087047863,-474.63673454,0.00010999,2]
[333384331,1722087047872,-500.0,0.00010999,2]
[333384332,1722087047883,-500.0,0.00010999,2]
[333384333,1722087047892,-502.07331038,0.00010999,2]
[333384334,1722087047904,-500.0,0.00010999,2]
[333384335,1722087047913,-500.0,0.00010999,2]
[333384336,1722087047922,-505.70944614,0.00010999,2]
[333384337,1722087047932,-500.0,0.00010999,2]
[333384338,1722087047941,-500.0,0.00010999,2]
[333384339,1722087047950,-500.0,0.00010999,2]
[333384340,1722087047959,-500.0,0.00010999,2]
[333384341,1722087047969,-500.0,0.00010999,2]
[333384342,1722087047978,-500.0,0.00010999,2]
[333384343,1722087047987,-500.0,0.00010999,2]
[333384344,1722087047996,-309.0008295,0.00010999,2]
[333384345,1722087048006,-500.0,0.00010999,2]
[333384346,1722087048015,-500.0,0.00010999,2]
[333384347,1722087048024,-504.70929577,0.00010999,2]
[333384348,1722087048033,-500.0,0.00010999,2]
[333384349,1722087048042,-501.76770214,0.00010999,2]
[333384350,1722087048051,-500.0,0.00010999,2]
[333384351,1722087048061,-500.0,0.00010999,2]
[333384352,1722087048070,-500.0,0.00010999,2]
[333384353,1722087048079,-501.96915728,0.00010999,2]
[333384354,1722087048089,-500.0,0.00010999,2]
[333384355,1722087048099,-500.0,0.00010999,2]
[333384356,1722087048108,-500.0,0.00010999,2]
[333384357,1722087048117,-466.95791808,0.00010999,2]
[333384358,1722087048126,-177.72,0.00010999,2]
[333384359,1722087048137,-280.63805623,0.00010999,2]
[333384360,1722087048147,-500.0,0.00010999,2]
[333384361,1722087048159,-500.0,0.00010999,2]
[333384362,1722087048169,-189.65596498,0.00010999,2]
[333384363,1722087048179,-2255.69644189,0.00010999,2]
[333384364,1722087048188,-500.0,0.00010999,2]
[333384365,1722087048198,-500.0,0.00010999,2]
[333384366,1722087048208,-516.420386,0.00010999,2]
[333384367,1722087048218,-500.0,0.00010999,2]
[333384368,1722087048227,-500.0,0.00010999,2]
[333384369,1722087048236,-500.99805629,0.00010999,2]
[333384370,1722087048247,-500.0,0.00010999,2]
[333384371,1722087048257,-500.0,0.00010999,2]
[333384372,1722087048267,-500.0,0.00010999,2]
[333384373,1722087048277,-486.82676831,0.00010999,2]
[333384374,1722087048286,-500.0,0.00010999,2]
[333384375,1722087048296,-501.14993689,0.00010999,2]
[333384376,1722087048305,-271888.08634805,0.00011,2]
[333384377,1722087048333,-322.37235166,0.00011,2]
[333384378,1722087048357,-803.75840269,0.00011,2]
[333384379,1722087048366,-689645.67633461,0.00011,2]
[333384380,1722087048379,-1324.6391,0.00011,2]
[333384381,1722087048391,-398.92117265,0.00011,2]
[333384382,1722087048403,-522.01898272,0.00011,2]
[333384383,1722087048415,-342.13732976,0.00011,2]
[333384384,1722087048427,-3686.841729,0.00011,2]
[333384385,1722087048438,-6900.1,0.00011,2]
[333384386,1722087048455,-1987.87391502,0.00011,2]
[333384558,1722088004211,-1641.0,8.218e-05,2]
[333384559,1722088004239,-738.8,8.219e-05,2]
[333384560,1722088004263,-200.0,9.872e-05,2]
[333384561,1722088004288,-3757.2,9.923e-05,2]
[333384581,1722088033526,150.5,0.0001789,120]
[333384582,1722088034256,150.5,0.0001788,120]
[333384583,1722088034870,150.5,0.0001787,120]
[333384584,1722088035203,233.5,0.0001789,120]
[333384634,1722088153216,404.0,0.0001789,120]
[333384635,1722088153437,150.5,0.0001789,120]
[333384636,1722088153726,404.0,0.0001788,120]
[333384637,1722088153906,274.83,0.0001788,120]
[333384639,1722088154214,404.0,0.0001787,120]
[333384640,1722088154736,404.0,0.0001789,120]
[333384641,1722088155231,404.0,0.0001788,120]
[333384642,1722088155710,404.0,0.0001787,120]
[333384643,1722088156185,404.0,0.0001789,120]
[333384646,1722088157208,404.0,0.0001788,120]
[333384647,1722088157702,404.0,0.0001789,120]
[333384648,1722088158183,412.0,0.0001788,120]
[333384679,1722088225572,273.23,0.0001337,30]
[333384691,1722088234446,-240.0,9.923e-05,2]
[333384692,1722088234457,-122.3254794,9.928e-05,2]
[333384693,1722088234470,-871.5527439,9.928e-05,2]
[333384694,1722088234484,-2737.33492461,9.928e-05,2]
[333384695,1722088234497,-1261.02900317,9.928e-05,2]
[333384696,1722088234511,-3127.22784892,9.928e-05,2]
[333384697,1722088234523,-300.0,9.933e-05,2]
[333384698,1722088234534,-300.0,9.933e-05,2]
[333384699,1722088234545,-2000.0,9.934e-05,2]
[333384700,1722088234557,-760.0,9.945e-05,2]
[333384701,1722088234569,-150.0,0.00010271,2]
[333384702,1722088234579,-738.8,0.00010471,2]
[333384703,1722088234590,-860.49,0.00010483,2]
[333384704,1722088234601,-150.0,0.00010787,2]
[333384705,1722088234612,-1301.0,0.00010788,2]
[333384706,1722088234623,-1614.936,0.00010788,2]
[333384707,1722088234633,-1669.0,0.00010788,2]
[333384708,1722088234644,-8765.68,0.00010788,2]
[333384709,1722088234655,-9753.117,0.00010788,2]
[333384710,1722088234665,-1202.0,0.00010788,2]
[333384711,1722088234677,-257.0139,0.00010858,2]
[333384712,1722088234688,-1518.02409611,0.00010889,2]
[333384713,1722088234699,-949.05,0.0001089,2]
[333384714,1722088234710,-1401.1305,0.00010899,2]
[333384715,1722088234722,-373.7337,0.00010899,2]
[333384716,1722088234734,-41.24074992,0.00010899,2]
[333384717,1722088234790,-1767.71005008,0.00010899,2]
[333384718,1722088234801,-273.72894526,0.00010899,2]
[333384719,1722088234812,-273.72894518,0.00010899,2]
[333384720,1722088234823,-273.72894518,0.00010899,2]
[333384721,1722088234834,-273.72894518,0.00010899,2]
[333384722,1722088234845,-273.72894518,0.00010899,2]
[333384723,1722088234856,-273.72894518,0.000109,2]
[333384724,1722088234866,-273.72894518,0.000109,2]
[333384725,1722088234877,-273.72894518,0.000109,2]
[333384726,1722088234888,-273.72894518,0.000109,2]
[333384727,1722088234898,-482.171456,0.000109,2]
[333384728,1722088234909,-202.37217045,0.000109,2]
[333384729,1722088234919,-189.01688898,0.000109,2]
[333384730,1722088234930,-273.72894518,0.000109,2]
[333384731,1722088234940,-1204.43052646,0.000109,2]
[333384732,1722088234951,-330.53380315,0.00010904,3]
[333384733,1722088234963,-15.53619685,0.00010904,3]
[333384734,1722088234974,-500.0,0.00010912,2]
[333384735,1722088234984,-420.0,0.00010926,2]
[333384736,1722088234995,-68.81762048,0.00010945,2]
[333384737,1722088235012,-931.18237952,0.00010945,2]
[333384738,1722088235023,-1000.0,0.00010945,2]
[333384739,1722088235033,-1000.0,0.00010945,2]
[333384740,1722088235043,-1000.0,0.00010945,2]
[333384741,1722088235054,-1000.0,0.00010945,2]
[333384742,1722088235064,-1000.0,0.00010945,2]
[333384743,1722088235074,-1000.0,0.00010945,2]
[333384744,1722088235084,-1000.0,0.00010945,2]
[333384745,1722088235094,-1000.0,0.00010945,2]
[333384746,1722088235104,-1000.0,0.00010945,2]
[333384747,1722088235115,-558.1699,0.00010945,2]
[333384748,1722088235125,-232.98636005,0.00010958,2]
[333384749,1722088235135,-200.0,0.00010959,2]
[333384750,1722088235145,-250.0,0.00010959,2]
[333384751,1722088235156,-336.72,0.00010987,2]
[333384752,1722088235166,-336.72,0.00010987,2]
[333384753,1722088235177,-336.72,0.00010988,2]
[333384754,1722088235187,-336.72,0.00010989,2]
[333384755,1722088235198,-336.72,0.00010989,2]
[333384756,1722088235209,-336.72,0.00010989,2]
[333384757,1722088235220,-336.72,0.00010989,2]
[333384758,1722088235234,-336.72,0.00010989,2]
[333384759,1722088235245,-336.72,0.00010989,2]
[333384760,1722088235256,-336.72,0.00010989,2]
[333384761,1722088235267,-8816.013007,0.00010994,2]
[333384762,1722088235277,-342.44,0.00010996,2]
[333384763,1722088235290,-500.0,0.00010996,2]
[333384764,1722088235301,-176.30767295,0.00010997,2]
[333384765,1722088235312,-620.02455553,0.00010997,2]
[333384766,1722088235323,-500.0,0.00010997,2]
[333384767,1722088235334,-913.61,0.00010997,2]
[333384768,1722088235345,-500.0,0.00010997,2]
[333384769,1722088235355,-250.50827034,0.00010997,2]
[333384770,1722088235366,-500.0,0.00010997,2]
[333384771,1722088235676,-500.0,0.00010997,2]
[333384772,1722088235687,-500.0,0.00010997,2]
[333384773,1722088235697,-500.0,0.00010997,2]
[333384774,1722088235706,-500.0,0.00010997,2]
[333384775,1722088235715,-500.0,0.00010997,2]
[333384776,1722088235726,-395.65810738,0.00010997,2]
[333384777,1722088235736,-500.0,0.00010997,2]
[333384778,1722088235746,-2460.6,0.00010997,2]
[333384779,1722088235755,-500.0,0.00010997,2]
[333384780,1722088235765,-171.83936263,0.00010997,2]
[333384781,1722088235775,-500.0,0.00010997,2]
[333384782,1722088235785,-3543.3,0.00010997,2]
[333384783,1722088235795,-500.0,0.00010997,2]
[333384784,1722088235806,-500.0,0.00010997,2]
[333384785,1722088235816,-500.0,0.00010997,2]
[333384786,1722088235826,-500.0,0.00010997,2]
[333384787,1722088235835,-1338.43,0.00010997,2]
[333384788,1722088235846,-500.0,0.00010997,2]
[333384789,1722088235856,-366.17864363,0.00010997,2]
[333384790,1722088235866,-500.0,0.00010997,2]
[333384791,1722088235875,-517.28,0.00010997,2]
[333384792,1722088235885,-500.0,0.00010997,2]
[333384793,1722088235895,-500.0,0.00010997,2]
[333384794,1722088235906,-500.0,0.00010997,2]
[333384795,1722088235915,-872.17,0.00010997,2]
[333384796,1722088235925,-500.0,0.00010997,2]
[333384797,1722088235935,-500.0,0.00010997,2]
[333384798,1722088235944,-699.51,0.00010997,2]
[333384799,1722088235954,-500.0,0.00010997,2]
[333384800,1722088235963,-500.0,0.00010997,2]
[333384801,1722088235976,-500.0,0.00010997,2]
[333384802,1722088235986,-501.72,0.00010997,2]
[333384803,1722088235995,-278.24397946,0.00010997,2]
[333384804,1722088236005,-500.0,0.00010997,2]
[333384805,1722088236015,-500.0,0.00010997,2]
[333384806,1722088236024,-500.0,0.00010997,2]
[333384807,1722088236034,-500.0,0.00010997,2]
[333384808,1722088236043,-500.0,0.00010997,2]
[333384809,1722088236054,-500.0,0.00010997,2]
[333384810,1722088236063,-532.01,0.00010997,2]
[333384811,1722088236073,-500.0,0.00010997,2]
[333384812,1722088236082,-618.57,0.00010997,2]
[333384813,1722088236091,-500.0,0.00010997,2]
[333384814,1722088236101,-352.6153459,0.00010997,2]
[333384815,1722088236111,-242.77,0.00010998,2]
[333384816,1722088236120,-500.0,0.00010998,2]
[333384817,1722088236130,-913.61,0.00010998,2]
[333384818,1722088236140,-500.0,0.00010998,2]
[333384819,1722088236150,-635.11574754,0.00010998,2]
[333384820,1722088236160,-644.55839793,0.00010998,2]
[333384821,1722088236170,-500.0,0.00010998,2]
[333384822,1722088236180,-500.0,0.00010998,2]
[333384823,1722088236190,-260.06,0.00010998,2]
[333384824,1722088236199,-500.0,0.00010998,2]
[333384825,1722088236209,-2460.6,0.00010998,2]
[333384826,1722088236218,-500.0,0.00010998,2]
[333384827,1722088236231,-500.0,0.00010998,2]
[333384828,1722088236240,-3543.3,0.00010998,2]
[333384829,1722088236250,-500.0,0.00010998,2]
[333384830,1722088236260,-500.0,0.00010998,2]
[333384831,1722088236269,-500.0,0.00010998,2]
[333384832,1722088236279,-500.0,0.00010998,2]
[333384833,1722088236288,-1338.43,0.00010998,2]
[333384834,1722088236298,-500.0,0.00010998,2]
[333384835,1722088236307,-500.0,0.00010998,2]
[333384836,1722088236317,-517.28,0.00010998,2]
[333384837,1722088236327,-500.0,0.00010998,2]
[333384838,1722088236337,-500.0,0.00010998,2]
[333384839,1722088236347,-500.0,0.00010998,2]
[333384840,1722088236357,-872.17,0.00010998,2]
[333384841,1722088236367,-500.0,0.00010998,2]
[333384842,1722088236376,-500.0,0.00010998,2]
[333384843,1722088236385,-699.51,0.00010998,2]
[333384844,1722088236395,-500.0,0.00010998,2]
[333384845,1722088236405,-298.81,0.00010998,2]
[333384846,1722088236415,-500.0,0.00010998,2]
[333384847,1722088236424,-500.0,0.00010998,2]
[333384848,1722088236434,-292.33438899,0.00010999,2]
[333384849,1722088236443,-913.61,0.00010999,2]
[333384850,1722088236453,-913.61,0.00010999,2]
[333384851,1722088236463,-913.61,0.00010999,2]
[333384852,1722088236476,-913.61,0.00010999,2]
[333384853,1722088236486,-913.61,0.00010999,2]
[333384854,1722088236496,-913.61,0.00010999,2]
[333384855,1722088236505,-913.61,0.00010999,2]
[333384856,1722088236515,-913.61,0.00010999,2]
[333384857,1722088236525,-913.61,0.00010999,2]
[333384858,1722088236535,-913.61,0.00010999,2]
[333384859,1722088236544,-913.61,0.00010999,2]
[333384860,1722088236557,-913.61,0.00010999,2]
[333384861,1722088236566,-913.61,0.00010999,2]
[333384862,1722088236576,-913.61,0.00010999,2]
[333384863,1722088236586,-913.61,0.00010999,2]
[333384864,1722088236596,-913.61,0.00010999,2]
[333384865,1722088236605,-913.61,0.00010999,2]
[333384866,1722088236615,-913.61,0.00010999,2]
[333384867,1722088236624,-913.61,0.00010999,2]
[333384868,1722088236635,-913.61,0.00010999,2]
[333384869,1722088236646,-913.61,0.00010999,2]
[333384870,1722088236657,-913.65939999,0.00010999,2]
[333384871,1722088236666,-500.0,0.00010999,2]
[333384872,1722088236675,-500.0,0.00010999,2]
[333384873,1722088236685,-364.46298447,0.00010999,2]
[333384874,1722088236694,-2225.98930662,0.00010999,2]
[333384875,1722088236703,-500.0,0.00010999,2]
[333384876,1722088236713,-500.0,0.00010999,2]
[333384877,1722088236725,-500.0,0.00010999,2]
[333384878,1722088236735,-536.34742079,0.00010999,2]
[333384879,1722088236747,-500.0,0.00010999,2]
[333384880,1722088236756,-500.0,0.00010999,2]
[333384881,1722088236765,-500.0,0.00010999,2]
[333384882,1722088236775,-500.0,0.00010999,2]
[333384883,1722088236784,-500.0,0.00010999,2]
[333384884,1722088236793,-500.0,0.00010999,2]
[333384885,1722088236802,-500.0,0.00010999,2]
[333384886,1722088236812,-500.0,0.00010999,2]
[333384887,1722088236821,-500.0,0.00010999,2]
[333384888,1722088236831,-500.0,0.00010999,2]
[333384889,1722088236840,-500.0,0.00010999,2]
[333384890,1722088236849,-167.96,0.00010999,2]
[333384891,1722088236859,-216.68546691,0.00010999,2]
[333384892,1722088236868,-809.47,0.00010999,2]
[333384893,1722088236878,-809.47,0.00010999,2]
[333384894,1722088236887,-809.47,0.00010999,2]
[333384895,1722088236897,-809.47,0.00010999,2]
[333384896,1722088236906,-809.47,0.00010999,2]
[333384897,1722088236915,-809.47,0.00010999,2]
[333384898,1722088236924,-809.47,0.00010999,2]
[333384899,1722088236933,-809.47,0.00010999,2]
[333384900,1722088236942,-809.47,0.00010999,2]
[333384901,1722088236951,-809.47,0.00010999,2]
[333384902,1722088236961,-809.47,0.00010999,2]
[333384903,1722088236970,-809.47,0.00010999,2]
[333384904,1722088236982,-809.47,0.00010999,2]
[333384905,1722088236991,-809.47,0.00010999,2]
[333384906,1722088237000,-809.47,0.00010999,2]
[333384907,1722088237009,-809.47,0.00010999,2]
[333384908,1722088237018,-809.47,0.00010999,2]
[333384909,1722088237028,-809.47,0.00010999,2]
[333384910,1722088237038,-809.47,0.00010999,2]
[333384911,1722088237049,-809.47,0.00010999,2]
[333384912,1722088237060,-809.47,0.00010999,2]
[333384913,1722088237069,-809.47,0.00010999,2]
[333384914,1722088237078,-809.47,0.00010999,2]
[333384915,1722088237087,-500.0,0.00010999,2]
[333384916,1722088237097,-809.54337579,0.00010999,2]
[333384917,1722088237106,-500.0,0.00010999,2]
[333384918,1722088237116,-500.0,0.00010999,2]
[333384919,1722088237126,-500.0,0.00010999,2]
[333384920,1722088237135,-580.85,0.00010999,2]
[333384921,1722088237145,-644.99499992,0.00010999,2]
[333384922,1722088237154,-500.0,0.00010999,2]
[333384923,1722088237165,-500.0,0.00010999,2]
[333384924,1722088237175,-500.0,0.00010999,2]
[333384925,1722088237186,-492.84244124,0.00010999,2]
[333384926,1722088237195,-500.0,0.00010999,2]
[333384927,1722088237205,-500.0,0.00010999,2]
[333384928,1722088237214,-500.0,0.00010999,2]
[333384929,1722088237224,-500.0,0.00010999,2]
[333384930,1722088237235,-500.0,0.00010999,2]
[333384931,1722088237245,-500.0,0.00010999,2]
[333384932,1722088237256,-500.0,0.00010999,2]
[333384933,1722088237265,-500.0,0.00010999,2]
[333384934,1722088237275,-500.0,0.00010999,2]
[333384935,1722088237284,-500.0,0.00010999,2]
[333384936,1722088237294,-500.0,0.00010999,2]
[333384937,1722088237304,-210.4,0.00010999,2]
[333384938,1722088237314,-500.0,0.00010999,2]
[333384939,1722088237324,-500.0,0.00010999,2]
[333384940,1722088237334,-500.0,0.00010999,2]
[333384941,1722088237343,-500.0,0.00010999,2]
[333384942,1722088237352,-500.0,0.00010999,2]
[333384943,1722088237362,-622.9330548,0.00010999,2]
[333384944,1722088237372,-428.17,0.00010999,2]
[333384945,1722088237382,-500.0,0.00010999,2]
[333384946,1722088237391,-500.0,0.00010999,2]
[333384947,1722088237400,-500.0,0.00010999,2]
[333384948,1722088237410,-640.60815407,0.00010999,2]
[333384949,1722088237420,-500.0,0.00010999,2]
[333384950,1722088237431,-500.0,0.00010999,2]
[333384951,1722088237441,-500.0,0.00010999,2]
[333384952,1722088237450,-500.0,0.00010999,2]
[333384953,1722088237461,-613.19,0.00010999,2]
[333384954,1722088237472,-500.0,0.00010999,2]
[333384955,1722088237481,-500.0,0.00010999,2]
[333384956,1722088237490,-500.0,0.00010999,2]
[333384957,1722088237500,-500.0,0.00010999,2]
[333384958,1722088237510,-500.0,0.00010999,2]
[333384959,1722088237519,-500.0,0.00010999,2]
[333384960,1722088237528,-500.0,0.00010999,2]
[333384961,1722088237537,-500.0,0.00010999,2]
[333384962,1722088237547,-500.0,0.00010999,2]
[333384963,1722088237558,-500.0,0.00010999,2]
[333384964,1722088237570,-500.0,0.00010999,2]
[333384965,1722088237580,-500.0,0.00010999,2]
[333384966,1722088237589,-500.0,0.00010999,2]
[333384967,1722088237599,-500.0,0.00010999,2]
[333384968,1722088237609,-500.0,0.00010999,2]
[333384969,1722088237619,-500.0,0.00010999,2]
[333384970,1722088237628,-500.0,0.00010999,2]
[333384971,1722088237638,-500.0,0.00010999,2]
[333384972,1722088237648,-210.45984295,0.00010999,2]
[333384973,1722088237659,-2460.6,0.00010999,2]
[333384974,1722088237669,-2460.6,0.00010999,2]
[333384975,1722088237679,-2460.6,0.00010999,2]
[333384976,1722088237688,-2460.6,0.00010999,2]
[333384977,1722088237699,-2460.6,0.00010999,2]
[333384978,1722088237708,-2460.6,0.00010999,2]
[333384979,1722088237717,-2460.6,0.00010999,2]
[333384980,1722088237729,-2460.6,0.00010999,2]
[333384981,1722088237738,-2460.6,0.00010999,2]
[333384983,1722088237747,-2460.6,0.00010999,2]
[333384985,1722088237758,-2460.6,0.00010999,2]
[333384986,1722088237768,-2460.6,0.00010999,2]
[333384988,1722088237777,-2460.6,0.00010999,2]
[333384990,1722088237786,-2460.6,0.00010999,2]
[333384991,1722088237795,-2460.6,0.00010999,2]
[333384992,1722088237804,-2460.6,0.00010999,2]
[333384993,1722088237813,-2460.6,0.00010999,2]
[333384994,1722088237822,-2460.6,0.00010999,2]